bitfinex/quotes_BTCUSD_20220105
["timestamp","ask_amount","ask_price","bid_price","bid_amount"]
[1641371086508,0.22021583,46338.0,46337.0,1.51544795]
[1641371087510,0.22021583,46338.0,46337.0,2.65844795]
[1641371087709,0.22021583,46338.0,46337.0,2.62744795]
[1641371087910,0.22021583,46338.0,46337.0,1.48444795]
[1641371088510,0.22021583,46338.0,46337.0,1.51844795]
[1641371088909,0.22021583,46338.0,46337.0,1.46844795]
[1641371089109,0.22021583,46338.0,46337.0,1.36844795]
[1641371089811,0.22021583,46338.0,46337.0,2.31044214]
[1641371090450,0.22021583,46338.0,46337.0,2.40244214]
[1641371090850,0.22021583,46338.0,46337.0,2.45244214]
[1641371091048,0.22021583,46338.0,46337.0,2.40244214]
[1641371091248,0.22021583,46338.0,46337.0,1.42644795]
[1641371091746,0.22021583,46338.0,46337.0,1.33444795]
[1641371092348,0.22021583,46338.0,46337.0,1.42344795]
[1641371092949,0.22021583,46338.0,46337.0,1.47344795]
[1641371093750,0.22021583,46338.0,46337.0,1.38444795]
[1641371094497,0.22021583,46338.0,46337.0,1.47144795]
[1641371095697,0.22021583,46338.0,46337.0,1.38444795]
[1641371096096,0.22021583,46338.0,46337.0,1.48444795]
[1641371096497,0.22021583,46338.0,46337.0,1.57944795]
[1641371097751,0.22021583,46338.0,46337.0,2.72244795]
[1641371099052,0.01,46344.0,46338.0,1.29]
[1641371099253,0.01,46344.0,46342.0,0.053937]
[1641371099452,0.01,46344.0,46343.0,1.52732168]
[1641371099753,0.01,46344.0,46343.0,1.52862028]
[1641371100354,0.01,46344.0,46343.0,1.59962028]
[1641371101606,0.01,46344.0,46343.0,1.52862028]
[1641371101807,0.01,46344.0,46343.0,0.23862028]
[1641371102406,0.01,46344.0,46343.0,0.80962028]
[1641371103407,0.01,46344.0,46343.0,1.30962028]
[1641371103610,0.01,46344.0,46343.0,0.80962028]
[1641371103808,0.01,46344.0,46343.0,0.78862028]
[1641371104407,0.01,46344.0,46343.0,1.21862028]
[1641371104808,0.01,46344.0,46343.0,1.26182028]
[1641371105451,0.01,46344.0,46343.0,1.63182028]
[1641371105654,0.01,46344.0,46343.0,1.57182028]
[1641371105851,0.01,46344.0,46343.0,1.20182028]
[1641371106453,0.01,46344.0,46343.0,1.60982028]
[1641371107054,0.01,46344.0,46343.0,1.23982028]
[1641371107253,0.01,46344.0,46343.0,0.86982028]
[1641371107455,0.01,46344.0,46343.0,2.96359686]
[1641371107654,0.01,46344.0,46343.0,2.97559686]
[1641371107856,0.01,46344.0,46343.0,1.83259686]
[1641371108457,0.01,46344.0,46343.0,3.02059686]
[1641371108656,0.01,46344.0,46343.0,1.82759686]
[1641371109506,0.01119061,46344.0,46343.0,1.82759686]
[1641371109906,0.23119061,46344.0,46343.0,1.82759686]
[1641371110307,0.23119061,46344.0,46343.0,1.78259686]
[1641371110508,0.23119061,46344.0,46343.0,1.84359686]
[1641371111107,0.23119061,46344.0,46343.0,2.98659686]
[1641371111511,0.01119061,46344.0,46343.0,2.98659686]
[1641371111809,0.01119061,46344.0,46343.0,2.92559686]
[1641371112008,0.01119061,46344.0,46343.0,2.88239686]
[1641371112409,0.01119061,46344.0,46343.0,2.94339686]
[1641371113657,0.01119061,46344.0,46343.0,2.93239686]
[1641371113955,0.01119061,46344.0,46343.0,2.23239686]
[1641371114356,0.01119061,46344.0,46343.0,2.88479686]
[1641371114555,0.01119061,46344.0,46343.0,2.93679686]
[1641371116402,0.01119061,46344.0,46343.0,2.93779686]
[1641371118004,0.01119061,46344.0,46343.0,2.88479686]
[1641371118402,0.01119061,46344.0,46343.0,2.93879686]
[1641371118806,0.01119061,46344.0,46343.0,0.054]
[1641371119209,0.01147628,46344.0,46343.0,0.054]
[1641371119807,0.01147628,46344.0,46342.0,0.053937]
[1641371120458,0.01147628,46344.0,46342.0,0.114937]
[1641371120660,0.01147628,46344.0,46342.0,0.168881]
[1641371120873,0.01147628,46344.0,46342.0,0.114937]
[1641371121761,0.01147628,46344.0,46342.0,0.053937]
[1641371122458,0.01147628,46344.0,46342.0,0.095937]
[1641371123900,0.01147628,46344.0,46342.0,0.053937]
[1641371124405,0.01147628,46344.0,46342.0,0.086937]
[1641371125801,0.01147628,46344.0,46342.0,0.053937]
[1641371126402,0.01147628,46344.0,46342.0,0.084937]
[1641371126602,0.01147628,46344.0,46342.0,0.24858631]
[1641371127005,0.01147628,46344.0,46343.0,0.16375262]
[1641371127204,0.01147628,46344.0,46343.0,1.53460054]
[1641371127652,0.01147628,46344.0,46343.0,1.63460054]
[1641371127853,0.01147628,46344.0,46343.0,0.34460054]
[1641371128059,0.01147628,46344.0,46343.0,0.0483]
[1641371128255,0.01147628,46344.0,46343.0,0.4083]
[1641371128554,0.01147628,46344.0,46343.0,0.4323]
[1641371129558,0.01147628,46344.0,46343.0,0.0723]
[1641371129756,0.01147628,46344.0,46343.0,0.0483]
[1641371130654,0.01147628,46344.0,46343.0,0.1203]
[1641371130856,0.01147628,46344.0,46343.0,0.072]
[1641371132311,0.01147628,46344.0,46342.0,0.053937]
[1641371132508,0.01147628,46344.0,46343.0,0.916]
[1641371132908,0.01147628,46344.0,46343.0,0.076]
[1641371133711,0.01147628,46344.0,46342.0,0.053937]
[1641371134508,0.01147628,46344.0,46342.0,0.136937]
[1641371135653,0.01147628,46344.0,46342.0,0.053937]
[1641371136553,0.01147628,46344.0,46342.0,0.144937]
[1641371137755,0.01147628,46344.0,46342.0,0.053937]
[1641371138456,0.01147628,46344.0,46342.0,0.147937]
[1641371140303,0.01147628,46344.0,46342.0,0.053937]
[1641371140503,0.01147628,46344.0,46342.0,0.146937]
[1641371141704,0.01147628,46344.0,46342.0,0.053937]
[1641371142504,0.01147628,46344.0,46342.0,0.152937]
[1641371143156,0.01147628,46344.0,46343.0,1.3383]
[1641371143354,0.01147628,46344.0,46343.0,1.48183067]
[1641371144556,0.0108917,46344.0,46343.0,1.51683067]
[1641371145759,0.0108917,46344.0,46343.0,1.3733]
[1641371145957,0.0108917,46344.0,46343.0,1.3383]
[1641371146598,0.0108917,46344.0,46343.0,1.3753]
[1641371147499,0.01061242,46344.0,46343.0,1.3753]
[1641371147701,0.01061242,46344.0,46343.0,1.3383]
[1641371148302,0.01061242,46344.0,46343.0,0.0483]
[1641371148500,0.01061242,46344.0,46343.0,0.0803]
[1641371149000,0.01061242,46344.0,46343.0,0.4603]
[1641371149902,0.01061242,46344.0,46343.0,0.4283]
[1641371150162,0.10907302,46354.0,46349.0,0.16182802]
[1641371150363,0.00122041,46356.0,46350.0,0.053941]
[1641371150758,0.053941,46355.0,46350.0,0.053941]
[1641371150958,0.24354224,46354.0,46350.0,0.053941]
[1641371151158,0.29748324,46354.0,46350.0,0.053941]
[1641371151359,0.053941,46354.0,46353.0,2.29015491]
[1641371154109,0.00081606,46356.0,46353.0,2.29015491]
[1641371154307,0.00081606,46356.0,46354.0,0.05393705]
[1641371157005,0.00081606,46356.0,46354.0,0.15787205]
[1641371158254,0.27477034,46360.0,46354.0,0.15787205]
[1641371158455,0.27477034,46360.0,46355.0,0.10787092]
[1641371158853,0.053936,46358.0,46355.0,0.15787092]
[1641371159156,0.053936,46358.0,46355.0,0.26968316]
[1641371159352,0.053936,46358.0,46356.0,0.05393569]
[1641371160153,0.59974733,46357.0,46356.0,0.05393569]
[1641371160654,0.64974733,46357.0,46356.0,0.05393569]
[1641371162598,0.63592391,46357.0,46356.0,0.05393569]
[1641371163401,0.28051191,46357.0,46356.0,0.05393569]
[1641371164300,0.03617658,46357.0,46356.0,0.05393569]
[1641371164502,0.157874,46358.0,46356.0,0.05393569]
[1641371166953,0.107874,46358.0,46356.0,0.05393569]
[1641371176260,0.00119026,46357.0,46356.0,0.05393569]
[1641371177305,0.00119026,46357.0,46356.0,1.22404637]
[1641371177505,0.00119026,46357.0,46356.0,1.32628037]
[1641371177704,0.00119026,46357.0,46356.0,0.40628037]
[1641371177905,0.0049,46365.0,46357.0,0.74]
[1641371178205,0.47393,46364.0,46358.0,0.0483]
[1641371179003,0.47393,46364.0,46359.0,0.23299194]
[1641371179207,0.47393,46364.0,46361.0,0.05392809]
[1641371179404,0.42,46364.0,46361.0,0.05392809]
[1641371180650,0.42,46364.0,46361.0,0.05492809]
[1641371180850,0.473929,46364.0,46361.0,0.05492809]
[1641371181150,0.473929,46364.0,46361.0,0.1627834]
[1641371181350,0.473929,46364.0,46361.0,0.2127834]
[1641371181854,0.473929,46364.0,46361.0,0.2017834]
[1641371182550,0.473929,46364.0,46361.0,0.2567114]
[1641371182551,0.42,46364.0,46361.0,0.2567114]
[1641371183752,0.42,46364.0,46361.0,0.2557114]
[1641371185207,0.00081271,46365.0,46362.0,0.053926]
[1641371185607,8.563e-05,46365.0,46362.0,0.053926]
[1641371185807,8.563e-05,46365.0,46362.0,0.05392528]
[1641371186307,0.10794363,46365.0,46362.0,0.05392528]
[1641371188354,0.053928,46365.0,46362.0,0.05392528]
[1641371188955,0.004,46369.0,46362.0,0.05392528]
[1641371189155,0.004,46369.0,46364.0,0.05392377]
[1641371189156,0.053925,46368.0,46364.0,0.05392377]
[1641371189355,0.64703,46367.0,46364.0,0.05392377]
[1641371189561,0.05,46366.0,46364.0,0.05392377]
[1641371189955,0.29212323,46366.0,46364.0,0.05392377]
[1641371190156,0.05,46366.0,46364.0,0.05392377]
[1641371190355,0.103926,46366.0,46364.0,0.05392377]
[1641371190756,0.355412,46365.0,46364.0,0.05392377]
[1641371190957,0.103926,46366.0,46364.0,0.05392377]
[1641371191156,0.355412,46365.0,46364.0,0.05392377]
[1641371192507,0.59554157,46365.0,46364.0,0.05392377]
[1641371192906,0.355412,46365.0,46364.0,0.05392377]
[1641371194711,0.405412,46365.0,46364.0,0.05392377]
[1641371194909,0.405412,46365.0,46363.0,0.10784754]
[1641371196449,0.05,46365.0,46363.0,0.10784754]
[1641371196650,0.103926,46366.0,46363.0,0.10784754]
[1641371196853,0.355412,46365.0,46363.0,0.10784754]
[1641371197050,0.053926,46366.0,46363.0,0.10784754]
[1641371197651,0.355412,46365.0,46363.0,0.10784754]
[1641371199104,0.053926,46366.0,46363.0,0.10784754]
[1641371200704,0.355412,46365.0,46363.0,0.10784754]
[1641371201704,0.053926,46366.0,46363.0,0.10784754]
[1641371206281,0.355412,46365.0,46363.0,0.10784754]
[1641371206508,0.053926,46366.0,46363.0,0.10784754]
[1641371207308,0.355412,46365.0,46363.0,0.10784754]
[1641371207715,0.2415029,46364.0,46360.0,0.10786683]
[1641371207912,0.053942,46361.0,46354.0,0.29818057]
[1641371208111,0.33327551,46358.0,46354.0,0.29693696]
[1641371208312,0.33327551,46358.0,46346.0,0.00621749]
[1641371208512,0.33327551,46358.0,46348.0,0.97599419]
[1641371208712,0.58107256,46356.0,46354.0,0.024]
[1641371208914,0.24166114,46355.0,46354.0,0.024]
[1641371209914,0.24166114,46355.0,46352.0,0.05394428]
[1641371210564,0.005,46355.0,46352.0,0.06594428]
[1641371211763,0.005,46355.0,46352.0,0.05394428]
[1641371211964,0.053939,46358.0,46355.0,0.05393802]
[1641371212362,0.053939,46358.0,46352.0,0.053938]
[1641371212565,0.066939,46358.0,46352.0,0.053938]
[1641371212763,0.013,46358.0,46354.0,0.053935]
[1641371212969,0.013,46358.0,46355.0,0.21008957]
[1641371213165,0.013,46358.0,46357.0,2.20629591]
[1641371214016,0.64703,46367.0,46360.0,0.053929]
[1641371214216,0.64703,46367.0,46362.0,0.05392709]
[1641371214417,0.64703,46367.0,46361.0,0.10785417]
[1641371214617,0.074929,46366.0,46361.0,0.10785417]
[1641371215216,0.074929,46366.0,46361.0,0.16178217]
[1641371215419,0.074929,46366.0,46361.0,0.21571017]
[1641371215817,0.64703,46367.0,46364.0,0.05392709]
[1641371216018,0.053932,46365.0,46359.0,0.10786289]
[1641371216218,0.053932,46365.0,46357.0,2.20629591]
[1641371216418,0.00078653,46364.0,46357.0,2.20629591]
[1641371216617,0.00078653,46364.0,46359.0,0.004]
[1641371217760,0.355412,46363.0,46359.0,0.004]
[1641371217961,0.30239524,46364.0,46353.0,0.2977]
[1641371218166,0.053939,46361.0,46357.0,0.05393897]
[1641371218462,0.053941,46358.0,46355.0,0.10787808]
[1641371218662,0.01,46361.0,46357.0,0.021]
[1641371218862,0.06,46361.0,46357.0,0.021]
[1641371219164,0.25053594,46361.0,46357.0,0.021]
[1641371219362,0.107882,46360.0,46357.0,0.0749396]
[1641371219562,0.053941,46360.0,46357.0,0.0749396]
[1641371219962,0.053941,46360.0,46357.0,0.0539396]
[1641371220363,0.053941,46360.0,46358.0,2.45195737]
[1641371220966,0.053933,46361.0,46358.0,2.45195737]
[1641371221164,0.053933,46361.0,46358.0,2.50589033]
[1641371222613,0.053933,46361.0,46358.0,2.51289033]
[1641371223615,0.053931,46364.0,46358.0,2.56682133]
[1641371223815,0.15913099,46366.0,46358.0,2.56682133]
[1641371224016,0.15913099,46366.0,46358.0,2.55982133]
[1641371224314,0.15913099,46366.0,46361.0,0.16178763]
[1641371224514,0.00078652,46364.0,46361.0,0.16178763]
[1641371225155,0.05471652,46364.0,46361.0,0.16178763]
[1641371226557,0.05471652,46364.0,46361.0,0.05392921]
[1641371228063,0.053937,46363.0,46361.0,0.05392921]
[1641371230407,0.05393,46364.0,46361.0,0.05392921]
[1641371232208,0.64703,46367.0,46361.0,0.05392921]
[1641371232411,0.00078576,46365.0,46361.0,0.05392921]
[1641371232662,0.00078576,46365.0,46363.0,0.05392336]
[1641371233263,0.00078576,46365.0,46363.0,0.10784836]
[1641371234760,0.00078576,46365.0,46363.0,0.11484836]
[1641371235861,0.00078576,46365.0,46363.0,0.10784836]
[1641371236536,0.00078576,46365.0,46363.0,0.05392336]
[1641371236732,0.00078576,46365.0,46363.0,0.06592336]
[1641371237935,0.00078576,46365.0,46363.0,0.05392336]
[1641371238334,0.053926,46366.0,46363.0,0.05392336]
[1641371238634,0.053926,46366.0,46363.0,0.06892336]
[1641371239934,0.053926,46366.0,46363.0,0.05392336]
[1641371240762,0.053926,46366.0,46363.0,0.05992336]
[1641371241982,0.053926,46366.0,46363.0,0.05392336]
[1641371242868,0.053926,46366.0,46363.0,0.05992336]
[1641371243068,0.00119006,46365.0,46363.0,0.05992336]
[1641371244521,0.00119006,46365.0,46363.0,0.05392336]
[1641371244718,0.00119006,46365.0,46363.0,0.06692336]
[1641371246120,0.00119006,46365.0,46363.0,0.05392336]
[1641371246718,0.00119006,46365.0,46363.0,0.06592336]
[1641371248171,0.00119006,46365.0,46363.0,0.05392336]
[1641371248670,0.00119006,46365.0,46363.0,0.06992336]
[1641371249371,0.00070279,46365.0,46363.0,0.06992336]
[1641371249970,0.00070279,46365.0,46363.0,0.05392336]
[1641371250771,0.00070279,46365.0,46363.0,0.09592336]
[1641371252016,0.00070279,46365.0,46363.0,0.05392336]
[1641371252817,0.00070279,46365.0,46363.0,0.09492336]
[1641371253917,0.00070279,46365.0,46363.0,0.05392336]
[1641371254818,0.00070279,46365.0,46363.0,0.07092336]
[1641371256067,0.00070279,46365.0,46363.0,0.05392336]
[1641371256266,0.64703,46367.0,46363.0,0.05392336]
[1641371256466,0.00078657,46366.0,46364.0,0.05392952]
[1641371257667,0.34994269,46366.0,46364.0,0.05392952]
[1641371257865,0.10865157,46366.0,46364.0,0.05392952]
[1641371258665,0.10865157,46366.0,46364.0,0.05492952]
[1641371259915,0.10865157,46366.0,46364.0,0.05392952]
[1641371261718,0.05471657,46366.0,46364.0,0.05392952]
[1641371263365,0.05393,46366.0,46364.0,0.05392952]
[1641371277522,0.05320199,46366.0,46364.0,0.05392952]
[1641371278168,0.10713599,46366.0,46364.0,0.05392952]
[1641371278571,0.05320199,46366.0,46364.0,0.05392952]
[1641371278769,0.05320199,46366.0,46364.0,0.06292952]
[1641371279967,0.05320199,46366.0,46364.0,0.05392952]
[1641371282322,0.64781676,46367.0,46364.0,0.05392952]
[1641371283523,0.64781676,46367.0,46365.0,0.10785528]
[1641371286972,0.64781676,46367.0,46366.0,1.60320022]
[1641371287379,0.64781676,46367.0,46366.0,1.496134]
[1641371287570,0.21652915,46367.0,46366.0,1.99633306]
[1641371287970,0.21652915,46367.0,46366.0,0.156134]
[1641371288373,0.21574239,46367.0,46366.0,0.0483]
[1641371288771,0.21574239,46367.0,46366.0,0.1093]
[1641371290116,0.21574239,46367.0,46366.0,0.0483]
[1641371290316,0.21574239,46367.0,46366.0,0.4083]
[1641371290721,0.21574239,46367.0,46366.0,0.64115263]
[1641371290920,0.21574239,46367.0,46366.0,0.06]
[1641371292120,0.21574239,46367.0,46360.0,0.97599419]
[1641371292121,0.25040745,46364.0,46360.0,0.97599419]
[1641371292323,0.25040745,46364.0,46358.0,0.3116]
[1641371292520,0.25040745,46364.0,46357.0,0.42]
[1641371292767,0.25940745,46364.0,46358.0,0.016]
[1641371292967,0.053936,46362.0,46358.0,0.016]
[1641371294167,0.053936,46362.0,46356.0,0.00127835]
[1641371294369,0.053936,46362.0,46356.0,0.05393402]
[1641371294768,0.059936,46362.0,46357.0,0.053935]
[1641371294969,0.0011902,46361.0,46357.0,0.053935]
[1641371295771,0.0011902,46361.0,46356.0,0.046]
[1641371295972,0.0011902,46361.0,46355.0,0.053935]
[1641371296419,0.00078644,46360.0,46355.0,0.053935]
[1641371296823,0.00078644,46360.0,46356.0,0.053936]
[1641371297221,0.00078644,46360.0,46355.0,0.049]
[1641371298121,0.00078644,46360.0,46352.0,1.69196952]
[1641371298528,0.00078644,46360.0,46352.0,1.68716952]
[1641371298926,0.00278644,46360.0,46355.0,0.053937]
[1641371299327,0.00278644,46360.0,46354.0,0.053936]
[1641371300167,0.00078644,46360.0,46356.0,0.053935]
[1641371300368,0.00119025,46359.0,46356.0,0.053935]
[1641371300770,0.00119025,46359.0,46356.0,0.074935]
[1641371301570,0.00119025,46359.0,46357.0,0.053932]
[1641371302868,0.00119025,46359.0,46357.0,0.073932]
[1641371304720,0.00119025,46359.0,46357.0,0.053932]
[1641371304920,0.00119025,46359.0,46357.0,0.138932]
[1641371305521,0.00119025,46359.0,46357.0,0.133932]
[1641371306325,0.00119025,46359.0,46358.0,1.1885187]
[1641371306522,0.00119025,46359.0,46358.0,1.2963667]
[1641371306921,0.00119025,46359.0,46358.0,1.3323667]
[1641371307668,0.21506232,46367.0,46362.0,0.107852]
[1641371308868,0.21506232,46367.0,46362.0,0.116852]
[1641371309466,0.21506232,46367.0,46362.0,0.062926]
[1641371309666,0.21506232,46367.0,46362.0,0.009]
[1641371310068,0.21506232,46367.0,46366.0,2.37194881]
[1641371317392,0.20702333,46367.0,46366.0,2.37194881]
[1641371320917,0.20702333,46367.0,46366.0,2.40594881]
[1641371322117,0.20702333,46367.0,46366.0,2.37194881]
[1641371322875,0.20702333,46367.0,46366.0,2.40694881]
[1641371323473,0.20702333,46367.0,46366.0,0.035]
[1641371324074,0.20702333,46367.0,46358.0,0.26728864]
[1641371324278,0.053929,46365.0,46360.0,0.05393]
[1641371324974,0.053929,46365.0,46360.0,0.07093]
[1641371326076,0.053929,46365.0,46360.0,0.05393]
[1641371326924,0.053929,46365.0,46360.0,0.07093]
[1641371327726,0.053929,46365.0,46360.0,0.017]
[1641371328128,0.053929,46365.0,46357.0,0.30318337]
[1641371328529,0.05470044,46365.0,46357.0,0.30318337]
[1641371328929,0.05470044,46365.0,46357.0,0.31918337]
[1641371330172,0.05470044,46365.0,46360.0,0.053929]
[1641371330971,0.05470044,46365.0,46360.0,0.069929]
[1641371331375,0.05470044,46365.0,46360.0,0.016]
[1641371332174,0.05470044,46365.0,46357.0,0.30318337]
[1641371332574,0.05470044,46365.0,46358.0,0.24945873]
[1641371332775,0.10863144,46365.0,46357.0,0.30318337]
[1641371332975,0.10863144,46365.0,46357.0,0.32018337]
[1641371333175,0.10863144,46365.0,46359.0,0.05393]
[1641371333375,0.10786,46365.0,46359.0,0.05393]
[1641371335019,0.11286,46365.0,46359.0,0.09093]
[1641371336319,0.10786,46365.0,46359.0,0.05393]
[1641371336522,0.05470443,46364.0,46357.0,0.355832]
[1641371336722,0.05470443,46364.0,46357.0,0.053932]
[1641371336921,0.05470443,46364.0,46359.0,0.035]
[1641371337122,0.00077143,46364.0,46359.0,0.035]
[1641371337529,0.053933,46361.0,46359.0,0.035]
[1641371338671,0.053932,46362.0,46359.0,0.035]
[1641371339071,0.05470343,46364.0,46359.0,0.035]
[1641371339072,0.006,46361.0,46359.0,0.051]
[1641371339771,0.059933,46361.0,46359.0,0.051]
[1641371340173,0.059933,46361.0,46357.0,0.053932]
[1641371340174,0.053933,46361.0,46357.0,0.053932]
[1641371340672,0.053933,46361.0,46356.0,0.23327733]
[1641371340872,0.053933,46361.0,46357.0,0.04]
[1641371342319,0.053933,46361.0,46356.0,0.23327733]
[1641371343020,0.053933,46361.0,46357.0,0.053932]
[1641371343924,0.053933,46361.0,46356.0,0.27827733]
[1641371344323,0.053933,46361.0,46356.0,0.23327733]
[1641371344524,0.05470436,46361.0,46356.0,0.23327733]
[1641371344922,0.05470436,46361.0,46356.0,0.27327733]
[1641371345770,0.05470436,46361.0,46356.0,0.32721033]
[1641371346168,0.05470436,46361.0,46356.0,0.28721033]
[1641371346569,0.00119021,46360.0,46356.0,0.28721033]
[1641371346770,0.00119021,46360.0,46356.0,0.23327733]
[1641371346968,0.05512621,46360.0,46356.0,0.27327733]
[1641371347569,0.00119021,46360.0,46356.0,0.27327733]
[1641371348270,0.00119021,46360.0,46356.0,0.23327733]
[1641371348471,0.00119021,46360.0,46356.0,0.28721033]
[1641371348919,0.00119021,46360.0,46356.0,0.33021033]
[1641371349521,0.00119021,46360.0,46357.0,0.0483]
[1641371349721,0.00119021,46360.0,46358.0,0.053926]
[1641371349924,0.00119021,46360.0,46359.0,1.60324031]
[1641371350922,0.00119021,46360.0,46359.0,1.63124031]
[1641371352125,0.00119021,46360.0,46359.0,1.60324031]
[1641371352869,0.00119021,46360.0,46359.0,1.63024031]
[1641371354071,0.00119021,46360.0,46359.0,0.34024031]
[1641371354272,0.00119021,46360.0,46359.0,0.31324031]
[1641371354673,0.00119021,46360.0,46359.0,1.09324031]
[1641371354872,0.00119021,46360.0,46359.0,1.12024031]
[1641371356274,0.00119021,46360.0,46359.0,1.09324031]
[1641371356920,0.00119021,46360.0,46359.0,1.12124031]
[1641371358121,0.00119021,46360.0,46359.0,1.22908931]
[1641371358325,0.00119021,46360.0,46359.0,1.20108931]
[1641371358922,0.00119021,46360.0,46359.0,1.22808931]
[1641371360165,0.00119021,46360.0,46359.0,0.44808931]
[1641371360374,0.00119021,46360.0,46359.0,0.42108931]
[1641371360665,0.00119021,46360.0,46359.0,0.92108931]
[1641371360869,0.00119021,46360.0,46359.0,0.94908931]
[1641371362367,0.00119021,46360.0,46359.0,0.92108931]
[1641371362968,0.00119021,46360.0,46359.0,0.94908931]
[1641371363472,0.00119021,46360.0,46359.0,1.30908931]
[1641371363917,0.00119021,46360.0,46359.0,0.94908931]
[1641371364317,0.00119021,46360.0,46359.0,0.92108931]
[1641371364919,0.00119021,46360.0,46359.0,0.94908931]
[1641371365519,0.00119021,46360.0,46359.0,1.57908931]
[1641371366125,0.00119021,46360.0,46359.0,1.62738931]
[1641371366421,0.00119021,46360.0,46359.0,1.59938931]
[1641371367023,0.00119021,46360.0,46359.0,1.62738931]
[1641371368069,0.00119021,46360.0,46359.0,0.99738931]
[1641371368268,0.00119021,46360.0,46359.0,0.96938931]
[1641371369070,0.00119021,46360.0,46359.0,0.99738931]
[1641371369468,0.00119021,46360.0,46359.0,1.46738931]
[1641371370270,0.00119021,46360.0,46359.0,1.43938931]
[1641371370972,0.00119021,46360.0,46359.0,0.99838931]
[1641371371524,0.00119021,46360.0,46359.0,1.51838931]
[1641371371921,0.00119021,46360.0,46359.0,0.99838931]
[1641371372320,0.00119021,46360.0,46359.0,0.96938931]
[1641371372521,0.00119021,46360.0,46359.0,1.33938931]
[1641371373120,0.00119021,46360.0,46359.0,1.36638931]
[1641371373520,0.00119021,46360.0,46359.0,0.99638931]
[1641371373720,0.00119021,46360.0,46359.0,0.49638931]
[1641371374121,0.00119021,46360.0,46359.0,0.42061113]
[1641371374321,0.00119021,46360.0,46359.0,0.39361113]
[1641371374522,0.00119021,46360.0,46359.0,1.13361113]
[1641371374922,0.00119021,46360.0,46359.0,1.16161113]
[1641371376176,0.00119021,46360.0,46359.0,0.156149]
[1641371376478,0.00119021,46360.0,46359.0,1.30196746]
[1641371377073,0.00119021,46360.0,46359.0,1.32796746]
[1641371377273,0.00119021,46360.0,46359.0,1.092149]
[1641371378277,0.00119021,46360.0,46359.0,1.066149]
[1641371378478,0.00119021,46360.0,46359.0,1.30330219]
[1641371378677,0.00119021,46360.0,46359.0,1.066149]
[1641371379131,0.00119021,46360.0,46359.0,1.33940931]
[1641371379924,0.00119021,46360.0,46359.0,1.092149]
[1641371380324,0.00119021,46360.0,46359.0,1.066149]
[1641371381128,0.00119021,46360.0,46359.0,1.093149]
[1641371382979,0.00119021,46360.0,46359.0,1.120149]
[1641371383178,0.00119021,46360.0,46359.0,1.093149]
[1641371384980,0.00119021,46360.0,46359.0,1.120149]
[1641371385382,0.00119021,46360.0,46359.0,1.066149]
[1641371385582,0.00119021,46360.0,46359.0,0.156149]
[1641371386724,0.00094462,46360.0,46359.0,1.446149]
[1641371387124,0.00094462,46360.0,46359.0,1.473149]
[1641371387525,0.00094462,46360.0,46359.0,0.183149]
[1641371387726,0.00094462,46360.0,46359.0,0.41683589]
[1641371388126,0.00094462,46360.0,46359.0,0.183149]
[1641371388326,0.00094462,46360.0,46359.0,0.156149]
[1641371389126,0.00094462,46360.0,46359.0,0.183149]
[1641371389327,0.00094462,46360.0,46359.0,0.723149]
[1641371390174,0.00094462,46360.0,46359.0,0.647849]
[1641371390376,0.00094462,46360.0,46359.0,0.107849]
[1641371390575,0.00094462,46360.0,46358.0,0.05392921]
[1641371390782,0.2082845,46360.0,46357.0,0.06471383]
[1641371390978,0.2882239,46356.0,46355.0,0.05393716]
[1641371391375,0.2882239,46356.0,46352.0,0.96631157]
[1641371391975,0.2882239,46356.0,46349.0,1.05216683]
[1641371392179,0.05394,46354.0,46351.0,0.05394]
[1641371392776,0.00119036,46353.0,46351.0,0.05394]
[1641371392976,0.00119036,46353.0,46351.0,0.09794]
[1641371393178,0.00119036,46353.0,46351.0,0.15188]
[1641371394334,0.00119036,46353.0,46351.0,0.10788]
[1641371395035,0.00119036,46353.0,46352.0,1.21006112]
[1641371396233,0.22119036,46353.0,46352.0,1.21006112]
[1641371396835,0.22119036,46353.0,46352.0,6.112e-05]
[1641371397139,0.22119036,46353.0,46352.0,0.88606112]
[1641371398377,0.22119036,46353.0,46352.0,0.81006112]
[1641371399077,0.22119036,46353.0,46352.0,0.88606112]
[1641371400381,0.22119036,46353.0,46352.0,0.81006112]
[1641371400681,0.22119036,46353.0,46352.0,1.04303439]
[1641371401080,0.22119036,46353.0,46352.0,1.08103439]
[1641371402130,0.22119036,46353.0,46352.0,1.56103439]
[1641371402326,0.22119036,46353.0,46352.0,1.52303439]
[1641371402728,0.22119036,46353.0,46352.0,1.04303439]
[1641371403229,0.22119036,46353.0,46352.0,1.55303439]
[1641371403829,0.22119036,46353.0,46352.0,1.07303439]
[1641371404228,0.22119036,46353.0,46352.0,1.04303439]
[1641371405031,0.22119036,46353.0,46352.0,1.07303439]
[1641371406072,0.22119036,46353.0,46352.0,1.44303439]
[1641371406272,0.22119036,46353.0,46352.0,1.41303439]
[1641371406873,0.22119036,46353.0,46352.0,1.04303439]
[1641371407073,0.22119036,46353.0,46352.0,1.45403439]
[1641371407473,0.22119036,46353.0,46352.0,1.07403439]
[1641371408471,0.22119036,46353.0,46352.0,1.04303439]
[1641371409123,0.22119036,46353.0,46352.0,1.55703439]
[1641371409323,0.22119036,46353.0,46352.0,1.56178242]
[1641371409523,0.22563291,46353.0,46352.0,1.55703439]
[1641371409923,0.23007546,46353.0,46352.0,1.55703439]
[1641371410125,0.23007546,46353.0,46352.0,1.60703439]
[1641371410427,0.23007546,46353.0,46352.0,1.57303439]
[1641371411028,0.23007546,46353.0,46352.0,1.66033439]
[1641371412423,0.23007546,46353.0,46352.0,1.62133439]
[1641371412677,0.23007546,46353.0,46352.0,1.14133439]
[1641371413080,0.23007546,46353.0,46352.0,1.20333439]
[1641371414276,0.23007546,46353.0,46352.0,1.14133439]
[1641371414678,0.23007546,46353.0,46352.0,1.09133439]
[1641371415080,0.23007546,46353.0,46352.0,1.12233439]
[1641371416280,0.23007546,46353.0,46352.0,1.09133439]
[1641371416534,0.23007546,46353.0,46352.0,2.05944343]
[1641371417133,0.23007546,46353.0,46352.0,2.09044343]
[1641371417332,0.23007546,46353.0,46352.0,2.14044343]
[1641371417733,0.23007546,46353.0,46352.0,1.17233439]
[1641371417936,0.23007546,46353.0,46352.0,1.75233439]
[1641371418339,0.23007546,46353.0,46352.0,2.13988006]
[1641371418635,0.23007546,46353.0,46352.0,2.10888006]
[1641371419235,0.23007546,46353.0,46352.0,3.86427769]
[1641371419437,0.00077124,46355.0,46352.0,3.86427769]
[1641371419737,0.00077124,46355.0,46354.0,4.52798586]